bitfinex-derivatives/quotes_SOLF0:USTF0_20240830
["timestamp","ask_amount","ask_price","bid_price","bid_amount"]
[1724993882478,3.64310512,139.12,139.11,2.97973442]
[1724993884078,0.04910512,139.12,139.11,2.97973442]
[1724993884286,0.04910512,139.12,139.11,19.67176604]
[1724993884980,0.04910512,139.12,139.11,10.98]
[1724993885371,0.04910512,139.12,139.11,20.30458535]
[1724993886783,3.5928,139.16,139.12,3.5938]
[1724993886985,3.5928,139.16,139.13,16.71058535]
[1724993887174,3.5928,139.16,139.14,5.7304037]
[1724993887684,3.64794182,139.16,139.14,5.7802745]
[1724993888188,0.05514182,139.16,139.14,0.0498708]
[1724993888378,0.05514182,139.16,139.14,5.7791957]
[1724993889378,3.64804182,139.16,139.14,5.7791957]
[1724993891082,3.64804182,139.16,139.14,0.0498708]
[1724993894483,3.64804182,139.16,139.14,5.7802745]
[1724993896486,3.64804182,139.16,139.15,2.97858675]
[1724993897986,3.64804182,139.16,139.14,0.0498708]
[1724993898191,3.64804182,139.16,139.15,2.97857728]
[1724993898695,3.64804182,139.16,139.15,8.70879398]
[1724993898989,0.05514182,139.16,139.15,19.68879398]
[1724993899382,0.05514182,139.16,139.15,23.28179398]
[1724993904591,0.05514182,139.16,139.15,23.27923418]
[1724993907991,0.05514182,139.16,139.15,14.573]
[1724993908194,0.05514182,139.16,139.15,23.27897569]
[1724993908992,0.05514182,139.16,139.15,12.29897569]
[1724993909190,0.05514182,139.16,139.15,23.27897569]
[1724993914798,0.05514182,139.16,139.15,20.30154838]
[1724993915002,0.05514182,139.16,139.15,14.573]
[1724993915201,0.05514182,139.16,139.15,23.27870914]
[1724993916399,0.02467971,139.16,139.15,23.27870914]
[1724993918401,0.02467971,139.16,139.15,14.573]
[1724993918703,0.02467971,139.16,139.15,23.27716839]
[1724993921607,0.02467971,139.16,139.15,17.54972689]
[1724993921900,0.02467971,139.16,139.15,23.2772375]
[1724993923411,69.39200283,139.23,139.16,3.5925]
[1724993923600,3.5916,139.21,139.19,10.98]
[1724993923800,3.5916,139.21,139.2,2.97675347]
[1724993925008,3.5916,139.21,139.2,2.97639311]
[1724993927709,3.64406305,139.22,139.2,2.97639311]
[1724993927908,3.64406305,139.22,139.21,2.97633231]
[1724993928111,3.64406305,139.22,139.2,10.98]
[1724993928415,3.64406305,139.22,139.21,2.97633075]
[1724993930524,3.64406305,139.22,139.19,11.03144695]
[1724993930722,3.64406305,139.22,139.2,2.97631697]
[1724993930919,3.64406305,139.22,139.19,11.03144695]
[1724993931228,3.64406305,139.22,139.2,2.97631696]
[1724993931523,3.64406305,139.22,139.21,2.9760651]
[1724993933522,0.05276305,139.22,139.21,2.9760651]
[1724993934325,0.05276305,139.22,139.2,2.9760651]
[1724993934519,0.05276305,139.22,139.21,2.9760651]
[1724993934827,0.05276305,139.22,139.19,0.05144695]
[1724993935020,11.03276305,139.22,139.19,0.05144695]
[1724993935216,11.03276305,139.22,139.2,0.85659842]
[1724993935516,3.5917,139.2,139.19,0.05144695]
[1724993937725,3.5915,139.21,139.19,0.05144695]
[1724993946130,0.05276305,139.22,139.19,0.05144695]
[1724993947328,3.5917,139.2,139.19,0.05144695]
[1724993949631,3.5917,139.2,139.19,3.02484247]
[1724993949826,3.5917,139.2,139.19,0.05144695]
[1724993950031,3.5917,139.2,139.19,3.02484247]
[1724993950233,3.5917,139.2,139.19,0.05144695]
[1724993950435,3.5917,139.2,139.19,3.02484247]
[1724993953340,3.5917,139.2,139.19,0.05144695]
[1724993953745,3.5917,139.2,139.19,3.02476872]
[1724993956547,3.5917,139.2,139.19,0.05144695]
[1724993956742,3.5917,139.2,139.19,3.02473693]
[1724993956950,3.5917,139.2,139.19,8.74803244]
[1724993957243,3.5917,139.2,139.19,3.02473693]
[1724993957447,3.5917,139.2,139.19,8.74803244]
[1724993957647,3.5917,139.2,139.19,3.02473693]
[1724993957847,3.5917,139.2,139.19,8.74803244]
[1724993958046,3.5917,139.2,139.19,3.02473693]
[1724993958343,3.5917,139.2,139.19,8.74803244]
[1724993958540,3.5917,139.2,139.19,3.02473693]
[1724993958747,3.5915,139.21,139.19,8.74803244]
[1724993959041,3.5915,139.21,139.2,2.97328998]
[1724993960449,3.64396305,139.22,139.2,2.97328998]
[1724993960649,3.64396305,139.22,139.2,10.98]
[1724993960845,3.64396305,139.22,139.21,2.97324288]
[1724993961741,3.64396305,139.22,139.2,10.98]
[1724993961945,3.64396305,139.22,139.21,2.97325142]
[1724993963257,3.64396305,139.22,139.2,10.98]
[1724993963446,3.64396305,139.22,139.21,2.97323908]
[1724993966550,3.64396305,139.22,139.2,10.98]
[1724993966757,3.64396305,139.22,139.21,2.97327856]
[1724993969653,3.5916,139.21,139.19,0.05144695]
[1724993969852,3.5916,139.21,139.2,8.69666379]
[1724993973054,3.5916,139.21,139.19,0.05144695]
[1724993973254,3.5916,139.21,139.2,8.69666375]
[1724993979766,0.05276305,139.22,139.19,0.05144695]
[1724993979767,3.5917,139.2,139.19,0.05144695]
[1724993979961,3.5917,139.2,139.19,3.02476808]
[1724993980169,3.5917,139.2,139.19,8.74811178]
[1724993983066,3.5917,139.2,139.19,8.74844268]
[1724993986173,3.5917,139.2,139.19,0.05144695]
[1724993986379,3.5917,139.2,139.19,3.02506293]
[1724993989783,3.5917,139.2,139.19,0.05144695]
[1724993989973,3.5917,139.2,139.19,3.02506282]
[1724993996989,3.5917,139.2,139.19,0.05144695]
[1724993997180,3.5917,139.2,139.19,3.02480463]
[1724994001785,3.5917,139.2,139.19,0.05144695]
[1724994002184,3.5917,139.2,139.19,3.02480567]
[1724994002789,3.5917,139.2,139.19,3.02480464]
[1724994004893,3.5916,139.21,139.19,3.02480464]
[1724994005083,3.5916,139.21,139.2,2.97335769]
[1724994005290,3.5916,139.21,139.2,13.95335769]
[1724994005492,0.05276305,139.22,139.2,13.95335769]
[1724994005691,0.05276305,139.22,139.21,2.97335769]
[1724994006189,0.05276305,139.22,139.21,2.97270088]
[1724994006789,3.64396305,139.22,139.21,2.97270088]
[1724994009289,3.5916,139.21,139.19,0.05144695]
[1724994009881,3.5916,139.21,139.2,2.97335508]
[1724994015493,0.05276305,139.22,139.19,0.05144695]
[1724994015494,3.5917,139.2,139.19,0.05144695]
[1724994015694,3.5917,139.2,139.19,3.02480411]
[1724994019191,3.5917,139.2,139.19,3.02539626]
[1724994021305,14.5717,139.2,139.19,0.05144695]
[1724994021499,14.5717,139.2,139.19,3.02598427]
[1724994021801,14.5717,139.2,139.19,0.05144695]
[1724994022000,3.5917,139.2,139.19,3.02580056]
[1724994022202,3.5916,139.21,139.19,3.02580056]
[1724994022402,3.5916,139.21,139.2,2.97435361]
[1724994027227,14.5716,139.21,139.2,2.97435361]
[1724994027820,3.5917,139.2,139.19,0.05144695]
[1724994028024,3.5917,139.2,139.19,3.0255038]
[1724994028722,3.5917,139.2,139.19,0.05144695]
[1724994028922,3.5917,139.2,139.19,3.02547537]
[1724994029123,3.5917,139.2,139.19,0.05144695]
[1724994034425,3.5917,139.2,139.06,1.4031]
[1724994034426,15.3,139.21,139.14,2.97580815]
[1724994034736,10.98,139.18,139.11,103.41948376]
[1724994034924,3.5932,139.15,139.12,2.97551808]
[1724994035220,3.5932,139.15,139.13,2.97551808]
[1724994035522,3.64620646,139.15,139.14,2.97551808]
[1724994035718,3.64620646,139.15,139.13,0.04606369]
[1724994035913,3.64620646,139.15,139.14,2.97566519]
[1724994039329,3.64620646,139.15,139.13,0.04606369]
[1724994039530,3.64620646,139.15,139.14,2.97566465]
[1724994042435,3.5933,139.14,139.13,0.04606369]
[1724994042624,3.5933,139.14,139.13,3.02168286]
[1724994047535,3.5933,139.14,139.13,0.04606369]
[1724994047738,3.5933,139.14,139.13,3.02168286]
[1724994048235,3.5933,139.14,139.13,0.04606369]
[1724994048430,3.5933,139.14,139.13,3.02168286]
[1724994048627,3.5933,139.14,139.13,0.04606369]
[1724994048827,3.5933,139.14,139.13,3.02168286]
[1724994049035,3.5933,139.14,139.13,0.04606369]
[1724994049437,3.5933,139.14,139.13,3.02172397]
[1724994049636,3.5933,139.14,139.13,0.04606369]
[1724994049836,3.5933,139.14,139.13,3.02172397]
[1724994050039,3.5933,139.14,139.13,0.04606369]
[1724994050241,3.5933,139.14,139.13,3.02172397]
[1724994050439,3.5933,139.14,139.13,0.04606369]
[1724994063943,0.05300646,139.15,139.13,0.04606369]
[1724994065242,0.05300646,139.15,139.13,3.02170645]
[1724994065641,0.05300646,139.15,139.13,0.04606369]
[1724994067050,3.64610646,139.15,139.13,0.04606369]
[1724994077752,3.64610646,139.15,139.13,3.0218503]
[1724994077956,3.64610646,139.15,139.13,0.04606369]
[1724994078253,3.64610646,139.15,139.13,3.0218503]
[1724994078455,3.64610646,139.15,139.13,0.04606369]
[1724994078646,3.64610646,139.15,139.13,3.0218503]
[1724994078847,3.64610646,139.15,139.13,0.04606369]
[1724994081452,0.05300646,139.15,139.13,11.02606369]
[1724994081652,1.3455,139.24,139.14,10.98]
[1724994081958,3.5919,139.2,139.15,17.54832824]
[1724994082155,3.5919,139.2,139.15,14.5728]
[1724994082649,0.05357016,139.19,139.16,0.05014123]
[1724994082853,3.64577016,139.19,139.16,0.05014123]
[1724994083255,3.5924,139.18,139.16,0.05014123]
[1724994085249,3.5925,139.17,139.16,0.05014123]
[1724994092064,3.5925,139.17,139.16,3.02530833]
[1724994093659,3.5925,139.17,139.16,0.05014123]
[1724994093859,3.5925,139.17,139.16,3.02534786]
[1724994097469,3.5925,139.17,139.16,3.02530834]
[1724994113871,3.5925,139.17,139.16,0.05014123]
[1724994114273,3.5925,139.17,139.16,3.02494705]
[1724994114466,0.05357016,139.19,139.16,3.02494705]
[1724994114671,0.05357016,139.19,139.18,10.98]
[1724994114871,3.5911,139.23,139.18,17.54690582]
[1724994115079,3.5911,139.23,139.21,10.98]
[1724994115874,3.63849918,139.23,139.22,2.97334923]
[1724994116172,3.63849918,139.23,139.21,11.02902815]
[1724994118676,3.63849918,139.23,139.21,0.04902815]
[1724994118975,3.5912,139.22,139.21,0.04902815]
[1724994119681,14.5712,139.22,139.21,0.04902815]
[1724994122576,3.5912,139.22,139.21,0.04902815]
[1724994137185,3.5922,139.19,139.16,2.97457621]
[1724994137493,3.5922,139.19,139.14,12.373]
[1724994137688,10.98,139.21,139.15,2.97457333]
[1724994137885,15.28,139.21,139.16,2.97457333]
[1724994138087,15.28,139.21,139.14,12.373]
[1724994138286,0.05247405,139.19,139.16,0.04621145]
[1724994139289,3.5923,139.18,139.16,0.04621145]
[1724994140085,3.64447405,139.19,139.16,11.02621145]
[1724994140287,3.64447405,139.19,139.17,2.97457421]
[1724994140487,3.64447405,139.19,139.16,11.02621145]
[1724994140694,3.64447405,139.19,139.17,2.97453569]
[1724994140892,3.64447405,139.19,139.16,11.02621145]
[1724994141094,3.64447405,139.19,139.17,2.97453569]
[1724994141294,3.64447405,139.19,139.16,11.02621145]
[1724994141499,3.64447405,139.19,139.17,2.97456735]
[1724994141795,3.64447405,139.19,139.16,11.02621145]
[1724994142096,3.64447405,139.19,139.17,2.97456735]
[1724994142596,3.64447405,139.19,139.16,11.02621145]
[1724994142897,3.64447405,139.19,139.17,2.97456735]
[1724994143103,3.64447405,139.19,139.16,11.02621145]
[1724994143401,3.64447405,139.19,139.17,2.97456735]
[1724994143592,3.64447405,139.19,139.16,11.02621145]
[1724994143792,3.64447405,139.19,139.17,2.97456735]
[1724994144096,3.64447405,139.19,139.16,11.02621145]
[1724994144298,3.64447405,139.19,139.17,2.97456735]
[1724994144497,3.64447405,139.19,139.16,11.02621145]
[1724994144699,3.64447405,139.19,139.17,2.97456735]
[1724994144895,3.64447405,139.19,139.16,11.02621145]
[1724994145090,3.64447405,139.19,139.17,2.97456735]
[1724994145400,3.64447405,139.19,139.16,11.02621145]
[1724994145602,3.64447405,139.19,139.17,2.97456735]
[1724994145900,3.64447405,139.19,139.16,11.02621145]
[1724994146102,3.64447405,139.19,139.17,2.97456735]
[1724994146292,3.64447405,139.19,139.16,11.02621145]
[1724994146492,3.64447405,139.19,139.17,2.9746069]
[1724994146797,3.64447405,139.19,139.16,11.02621145]
[1724994146995,3.64447405,139.19,139.17,2.9746069]
[1724994147196,3.64447405,139.19,139.16,11.02621145]
[1724994147399,3.64447405,139.19,139.17,2.97460689]
[1724994147592,3.64447405,139.19,139.16,11.02621145]
[1724994147798,3.64447405,139.19,139.17,2.97460689]
[1724994147995,3.64447405,139.19,139.16,11.02621145]
[1724994148299,3.64447405,139.19,139.17,2.97460195]
[1724994148498,3.64447405,139.19,139.16,11.02621145]
[1724994148695,3.64447405,139.19,139.17,2.97460195]
[1724994148899,3.64447405,139.19,139.16,11.02621145]
[1724994149102,3.64447405,139.19,139.17,2.97460689]
[1724994149396,3.64447405,139.19,139.16,11.02621145]
[1724994149602,3.64447405,139.19,139.17,2.97460689]
[1724994149898,3.64447405,139.19,139.16,11.02621145]
[1724994150093,3.64447405,139.19,139.17,2.97460689]
[1724994150299,3.64447405,139.19,139.16,11.02621145]
[1724994150501,3.64447405,139.19,139.17,2.97460689]
[1724994150800,3.64447405,139.19,139.16,11.02621145]
[1724994150990,3.64447405,139.19,139.17,2.97460689]
[1724994151197,3.64447405,139.19,139.16,11.02621145]
[1724994151393,3.64447405,139.19,139.17,2.97460688]
[1724994151605,3.64447405,139.19,139.16,11.02621145]
[1724994151901,3.64447405,139.19,139.17,2.97459547]
[1724994152097,3.64447405,139.19,139.16,11.02621145]
[1724994152292,3.64447405,139.19,139.17,2.97459549]
[1724994152495,3.5922,139.18,139.16,11.02621145]
[1724994152694,3.5922,139.18,139.17,2.97459549]
[1724994158010,3.5922,139.18,139.16,0.04621145]
[1724994158207,3.5922,139.18,139.17,2.97456735]
[1724994166504,3.64447405,139.19,139.17,2.97456735]
[1724994166714,3.64447405,139.19,139.16,11.02621145]
[1724994166916,3.64447405,139.19,139.17,2.97461616]
[1724994167119,0.05247405,139.19,139.18,10.98]
[1724994167415,4.3,139.24,139.18,13.95461412]
[1724994167711,5.6412,139.25,139.2,10.98]
[1724994168311,0.04632768,139.24,139.21,0.04644027]
[1724994170319,3.5912,139.22,139.21,0.04644027]
[1724994174118,15.32632768,139.24,139.21,0.04644027]
[1724994174119,4.34632768,139.24,139.21,0.04644027]
[1724994174322,0.04632768,139.24,139.21,0.04644027]
[1724994175422,3.5912,139.22,139.21,0.04644027]
[1724994178835,0.04632768,139.24,139.21,11.02644027]
[1724994179039,0.04632768,139.24,139.23,10.98]
[1724994186439,0.04632768,139.24,139.22,10.98]
[1724994186742,0.04632768,139.24,139.21,0.04644027]
[1724994186936,3.63722768,139.24,139.21,0.04644027]
[1724994187441,3.5912,139.22,139.21,0.04644027]
[1724994189035,14.5712,139.22,139.21,0.04644027]
[1724994189842,18.8712,139.22,139.21,0.04644027]
[1724994190737,14.5712,139.22,139.21,0.04644027]
[1724994191437,18.8712,139.22,139.21,0.04644027]
[1724994192141,15.28,139.22,139.13,83.39392805]
[1724994192349,10.98,139.2,139.14,2.97464183]
[1724994192657,10.98,139.2,139.14,10.98]
[1724994192838,10.98,139.2,139.15,2.97458056]
[1724994193042,0.05183947,139.19,139.16,0.04828014]
[1724994193238,0.05183947,139.19,139.17,2.97458056]
[1724994193441,3.5924,139.18,139.16,11.02828014]
[1724994193644,3.5924,139.18,139.17,2.97458173]
[1724994198249,3.64383947,139.19,139.17,2.97458173]
[1724994198450,0.05183947,139.19,139.16,11.02828014]
[1724994198751,0.05183947,139.19,139.17,2.97454517]
[1724994198938,0.05183947,139.19,139.18,2.97454517]
[1724994199139,0.05183947,139.19,139.16,11.02828014]
[1724994199337,0.05183947,139.19,139.18,2.97457292]
[1724994200350,3.64383947,139.19,139.18,2.97457292]
[1724994210353,3.64383947,139.19,139.16,0.04828014]
[1724994210554,3.5924,139.18,139.17,2.97460654]
[1724994212051,3.5924,139.18,139.16,0.04828014]
[1724994212258,3.5924,139.18,139.17,2.97459535]
[1724994215063,7.8924,139.18,139.17,2.97459535]
[1724994215360,3.5925,139.17,139.16,0.04828014]
[1724994215564,10.98,139.17,139.08,4.3]
[1724994215759,10.98,139.15,139.09,13.95580247]
[1724994215953,10.98,139.15,139.1,2.97580247]
[1724994216166,10.98,139.15,139.11,2.97580247]
[1724994216457,0.04580532,139.14,139.12,3.0298918]
[1724994216764,3.63910532,139.14,139.13,2.97580247]
[1724994217262,3.5935,139.13,139.12,0.05408933]
[1724994217459,3.5935,139.13,139.12,3.0302574]
[1724994218462,3.5935,139.13,139.12,0.05408933]
[1724994218669,3.5935,139.13,139.12,3.03026208]
[1724994219062,3.5935,139.13,139.12,0.05408933]
[1724994219364,3.5935,139.13,139.12,3.03026208]
[1724994221361,3.5935,139.13,139.12,0.05408933]
[1724994229566,14.5735,139.13,139.12,0.05408933]
[1724994229970,18.8735,139.13,139.12,0.05408933]
[1724994236274,7.8935,139.13,139.12,0.05408933]
[1724994238584,18.8735,139.13,139.12,0.05408933]
[1724994243182,3.5935,139.13,139.12,0.05408933]
[1724994243780,7.8935,139.13,139.12,0.05408933]
[1724994244978,3.5935,139.13,139.12,0.05408933]
[1724994245182,7.8935,139.13,139.12,0.05408933]
[1724994245390,3.5935,139.13,139.12,0.05408933]
[1724994246184,7.8935,139.13,139.12,0.05408933]
[1724994247293,3.5935,139.13,139.12,0.05408933]
[1724994248092,7.8935,139.13,139.12,0.05408933]
[1724994249197,3.5935,139.13,139.12,0.05408933]
[1724994249882,7.8935,139.13,139.12,0.05408933]
[1724994251589,3.5935,139.13,139.12,0.05408933]
[1724994252103,7.8935,139.13,139.12,0.05408933]
[1724994252299,3.5935,139.13,139.12,0.05408933]
[1724994252798,7.8935,139.13,139.12,0.05408933]
[1724994253091,3.5935,139.13,139.12,0.05408933]
[1724994253484,7.8935,139.13,139.12,0.05408933]
[1724994255998,3.5935,139.13,139.12,0.05408933]
[1724994256600,7.8935,139.13,139.12,0.05408933]
[1724994257297,3.5935,139.13,139.12,0.05408933]
[1724994257500,7.8935,139.13,139.12,0.05408933]
[1724994258411,3.5935,139.13,139.12,0.05408933]
[1724994258911,7.8935,139.13,139.12,0.05408933]
[1724994259612,3.5935,139.13,139.12,0.05408933]
[1724994259916,7.8935,139.13,139.12,0.05408933]
[1724994260102,3.5935,139.13,139.12,0.05408933]
[1724994260305,7.8935,139.13,139.12,0.05408933]
[1724994261708,3.5935,139.13,139.12,0.05408933]
[1724994262408,7.8935,139.13,139.12,0.05408933]
[1724994263210,3.5935,139.13,139.12,0.05408933]
[1724994263512,7.8935,139.13,139.12,0.05408933]
[1724994264411,3.5935,139.13,139.12,0.05408933]
[1724994265010,18.8735,139.13,139.12,0.05408933]
[1724994265210,14.5735,139.13,139.12,0.05408933]
[1724994265802,18.8735,139.13,139.12,0.05408933]
[1724994266007,18.8735,139.13,139.08,4.33104904]
[1724994266008,3.5946,139.09,139.08,2.97694904]
[1724994266205,3.5946,139.09,138.96,39.5339]
[1724994266206,3.5946,139.09,139.03,17.38481108]
[1724994266517,3.5946,139.09,139.05,2.97730206]
[1724994266711,3.5946,139.09,139.06,2.97730206]
[1724994266917,3.5946,139.09,139.05,2.97730206]
[1724994267107,0.05224944,139.08,139.06,2.97730206]
[1724994267309,14.62704944,139.08,139.05,2.97730206]
[1724994267513,14.62704944,139.08,139.06,2.97730206]
[1724994267709,14.62704944,139.08,139.05,2.97730206]
[1724994267910,14.62704944,139.08,139.06,2.97730206]
[1724994268118,14.62704944,139.08,139.05,2.97730206]
[1724994268310,3.5951,139.07,139.06,2.97730206]
[1724994268510,3.5951,139.07,139.05,2.97730206]
[1724994268711,3.5951,139.07,139.06,2.97730206]
[1724994269014,3.5951,139.07,139.05,2.97730206]
[1724994269216,3.5951,139.07,139.06,2.97730206]
[1724994269422,3.5953,139.06,139.05,2.97730206]
[1724994269713,3.5953,139.06,139.03,6.40481108]
[1724994269913,3.5953,139.06,139.05,2.97730802]
[1724994271912,10.98,139.07,139.04,2.97730802]
[1724994271913,3.5956,139.05,139.04,2.97730802]
[1724994272312,3.5956,139.05,139.03,2.7677]
[1724994273117,3.5959,139.04,139.03,2.7677]
[1724994274016,3.5959,139.04,139.03,1.4089]
[1724994275123,0.05211951,139.05,139.01,1.321]
[1724994275314,0.05211951,139.05,138.98,2.6394]
[1724994275315,11.03211951,139.05,138.98,2.6394]
[1724994275518,11.03211951,139.05,138.98,17.2166]
[1724994275721,11.03211951,139.05,138.98,20.86714844]
[1724994275917,3.5964,139.02,138.98,20.86714844]
[1724994276114,0.04563415,139.01,138.98,20.86714844]
[1724994276729,0.04563415,139.01,139.0,10.98]
[1724994277816,0.04563415,139.01,138.98,9.88714844]
[1724994278020,0.04563415,139.01,139.0,10.98]
[1724994280522,4.3,139.06,139.0,10.98]
[1724994280826,4.3,139.07,139.02,10.98]
[1724994281024,3.5958,139.05,139.02,10.98]
[1724994281325,4.3,139.07,139.02,10.98]
[1724994281625,3.5958,139.05,139.03,0.04782983]
[1724994283421,3.5959,139.04,139.03,0.04782983]
[1724994289027,0.04762357,139.06,139.03,11.02782983]
[1724994289233,0.04762357,139.06,139.05,10.98]
[1724994290336,4.3,139.11,139.07,10.98]
[1724994290530,10.98,139.12,139.07,10.98]
[1724994290531,3.5944,139.1,139.07,10.98]
[1724994291231,3.6460742,139.1,139.07,11.02716282]
[1724994294131,3.5948,139.09,139.07,11.02716282]
[1724994294324,0.0516742,139.1,139.07,11.02716282]
[1724994294530,0.0516742,139.1,139.08,10.98]
[1724994297237,0.0516742,139.1,139.07,0.04716282]
[1724994297535,0.0516742,139.1,139.07,11.02716282]
[1724994297736,0.0516742,139.1,139.07,14.62216282]
[1724994298039,0.0516742,139.1,139.07,0.04716282]
[1724994298336,3.5946,139.09,139.07,0.04716282]
[1724994298734,0.0516742,139.1,139.07,0.04716282]
[1724994301029,0.0516742,139.1,139.07,11.02716282]
[1724994301839,335.0,139.24,139.09,10.98]
[1724994302032,335.0,139.24,139.07,0.04716282]
[1724994302033,10.98,139.19,139.13,10.98]
[1724994302434,3.5927,139.17,139.13,10.98]
[1724994302631,15.28,139.19,139.13,10.98]
[1724994302837,0.05186275,139.17,139.15,0.05260461]
[1724994303230,3.5928,139.16,139.15,0.05260461]
[1724994303445,14.5728,139.16,139.15,0.05260461]
[1724994304732,18.8728,139.16,139.15,0.05260461]
[1724994305331,14.5728,139.16,139.15,0.05260461]
[1724994305535,3.5932,139.15,139.09,14.5744]
[1724994306641,0.04850172,139.13,139.11,0.05376459]
[1724994307950,3.64210172,139.13,139.11,0.05376459]
[1724994315455,3.5938,139.12,139.11,0.05376459]
[1724994316853,3.5945,139.1,139.05,14.5756]
[1724994317850,0.04991233,139.09,139.06,0.05072996]
[1724994319258,3.5951,139.08,139.06,0.05072996]
[1724994319755,3.5951,139.07,139.06,0.05072996]
[1724994333172,14.5751,139.07,139.06,0.05072996]
[1724994343184,3.5951,139.07,139.06,0.05072996]
[1724994351285,14.5751,139.07,139.06,0.05072996]
[1724994351686,15.9222,139.07,139.06,0.05072996]
[1724994351882,15.9222,139.07,138.98,3.5974]
[1724994351883,3.5964,139.03,138.98,3.5974]
[1724994352083,10.98,139.04,138.98,10.98]
[1724994352896,0.05491737,139.02,138.98,10.98]
[1724994353393,0.05491737,139.02,138.97,12.2793]
[1724994353791,3.5968,139.01,138.97,1.2993]
[1724994353989,0.05491737,139.02,138.97,12.2793]
[1724994354492,3.597,139.0,138.97,12.2793]
[1724994354688,3.597,139.0,138.97,1.2993]
[1724994354889,3.597,139.0,138.97,12.2793]
[1724994355091,3.597,139.0,138.97,1.2993]
[1724994355894,3.5972,138.99,138.95,3.5981]
[1724994356091,0.04622326,138.98,138.96,10.98]
[1724994356495,0.04622326,138.98,138.95,7.8981]
[1724994356691,3.64372326,138.98,138.94,4.9139]
[1724994356893,3.64372326,138.98,138.93,2.7426]
[1724994356894,11.02622326,138.98,138.93,1.3636]
[1724994357191,11.02622326,138.98,138.91,10.98]
[1724994357398,0.05525258,138.96,138.91,10.98]
[1724994357992,10.98,138.93,138.89,4.3]
[1724994358187,0.04892348,138.92,138.88,10.98]
[1724994358396,0.05341829,138.91,138.88,10.98]
[1724994359394,0.05341829,138.91,138.9,10.98]
[1724994360399,4.3,138.96,138.9,10.98]
[1724994360587,15.28,138.97,138.9,10.98]
[1724994360788,10.98,138.94,138.84,2.7492]
[1724994360991,10.98,138.92,138.84,2.7492]
[1724994361192,10.98,138.92,138.84,13.7292]
[1724994361193,3.6001,138.88,138.84,13.7292]
[1724994361402,0.04785843,138.87,138.85,0.05036022]
[1724994361604,0.04785843,138.87,138.86,10.98]
[1724994362001,0.04785843,138.87,138.85,0.05036022]
[1724994362297,0.04785843,138.87,138.86,10.98]
[1724994363191,0.04785843,138.87,138.85,0.05036022]
[1724994363397,0.04785843,138.87,138.86,10.98]
[1724994364597,0.04785843,138.87,138.85,0.05036022]
[1724994364598,0.04785843,138.87,138.85,0.01036022]
[1724994364999,0.04785843,138.87,138.85,10.99036022]
[1724994365197,3.64835843,138.87,138.85,10.99036022]
[1724994365396,0.04785843,138.87,138.85,0.01036022]
[1724994365705,0.04785843,138.87,138.85,10.99036022]
[1724994366806,3.64825843,138.87,138.85,10.99036022]
[1724994367202,3.6005,138.86,138.85,0.01036022]
[1724994367605,0.04785843,138.87,138.85,0.01036022]
[1724994367805,0.04785843,138.87,138.85,10.99036022]
[1724994368313,3.64825843,138.87,138.85,0.01036022]
[1724994368501,0.04785843,138.87,138.85,0.01036022]
[1724994369202,0.04785843,138.87,138.86,10.98]
[1724994369508,10.98,138.93,138.86,10.98]
[1724994369711,10.98,138.93,138.87,10.98]
[1724994369906,3.5994,138.91,138.87,10.98]
[1724994370411,0.05509252,138.9,138.88,0.05217726]
[1724994370604,3.65459252,138.9,138.88,0.05217726]
[1724994371013,0.05509252,138.9,138.88,0.05217726]
[1724994373408,15.28,138.95,138.89,10.98]
[1724994373607,1.3277,138.99,138.9,10.98]
[1724994373608,10.98,138.96,138.9,10.98]
[1724994374005,10.98,138.98,138.91,10.98]
[1724994374207,15.28,138.98,138.91,10.98]
[1724994374607,3.5984,138.95,138.93,0.04559385]
[1724994375011,3.6482102,138.96,138.93,0.04559385]
[1724994375311,3.6482102,138.96,138.93,11.02559385]
[1724994375514,3.5984,138.94,138.93,0.04559385]
[1724994377006,3.5984,138.94,138.82,43.92]
[1724994377007,10.98,138.94,138.64,36.76140989]
[1724994377206,48.22,138.97,138.6,176.78455579]
[1724994377207,10.98,138.87,138.8,10.98]
[1724994377407,10.98,138.88,138.81,3.54531058]
[1724994377905,10.98,138.88,138.81,4.91141058]
[1724994378106,0.05481909,138.86,138.83,0.0466755]
[1724994378810,10.98,138.85,138.83,0.0466755]
[1724994379203,3.601,138.84,138.83,0.0466755]
[1724994381713,3.6008,138.85,138.83,0.0466755]
[1724994383621,0.05481909,138.86,138.83,0.0466755]
[1724994383824,11.03481909,138.86,138.83,0.0466755]